bitfinex/quotes_ETHUSD_20260209
["timestamp","ask_amount","ask_price","bid_price","bid_amount"]
[1770613936912,0.92975445,2088.7,2088.6,0.001]
[1770613937536,5.24490497,2088.8,2088.6,0.001]
[1770613937826,4.048,2088.8,2088.6,0.001]
[1770613938328,5.24486301,2088.8,2088.6,0.001]
[1770613938792,0.002,2088.7,2088.6,0.001]
[1770613940308,0.96152901,2088.7,2088.6,0.001]
[1770613942325,2.15844575,2088.7,2088.6,0.001]
[1770613942922,0.002,2088.7,2088.6,0.001]
[1770613944632,1.19891674,2088.7,2088.6,0.001]
[1770613949534,0.002,2088.7,2088.6,0.001]
[1770613954230,0.96152901,2088.7,2088.6,0.001]
[1770613954954,2.15844575,2088.7,2088.6,0.001]
[1770613957450,2.15844575,2088.7,2088.5,0.001]
[1770613960415,0.95952901,2088.6,2088.5,0.001]
[1770613961526,1.19891674,2088.7,2088.5,0.001]
[1770613963061,0.002,2088.7,2088.5,0.001]
[1770613972791,0.002,2088.7,2088.5,0.9506858]
[1770613982585,0.002,2088.7,2088.5,0.001]
[1770613982767,0.94566051,2088.7,2088.5,0.001]
[1770613982963,0.94566051,2088.7,2088.4,0.001]
[1770613984989,0.7,2088.5,2088.4,0.001]
[1770613985877,1.89703136,2088.5,2088.1,0.001]
[1770613986191,2.84069187,2088.5,2088.1,0.001]
[1770613987997,0.94366051,2088.3,2088.1,0.001]
[1770613988492,0.94366051,2088.3,2088.0,0.001]
[1770613988997,0.94366051,2088.0,2087.7,0.001]
[1770613989295,5.48703586,2087.9,2087.7,0.001]
[1770613990195,5.48703586,2087.9,2087.6,0.001]
[1770613990496,0.94366051,2087.8,2087.6,0.001]
[1770613991200,2.14113339,2087.8,2087.6,0.001]
[1770613991774,0.94366051,2087.6,2087.3,0.001]
[1770613991976,3.347,2087.5,2087.3,0.001]
[1770613992177,0.94366051,2087.4,2087.0,0.001]
[1770613993501,3.347,2087.5,2087.0,0.9506858]
[1770613994402,3.347,2087.7,2087.2,0.9496858]
[1770613996600,4.54450801,2087.7,2087.0,2.18154232]
[1770613996783,5.50986885,2087.7,2087.0,0.98368122]
[1770613996982,0.98034213,2087.6,2087.0,0.98368122]
[1770613997283,4.54450801,2087.7,2087.1,0.98941138]
[1770613997698,5.52485014,2087.7,2087.0,0.001]
[1770613997981,0.98034213,2087.6,2087.0,1.19888953]
[1770613998381,4.54450801,2087.7,2087.0,2.18830091]
[1770613998683,4.54450801,2087.7,2087.1,0.98941138]
[1770613999083,1.19737535,2087.9,2087.3,0.98941138]
[1770613999288,3.348,2087.8,2087.3,0.98941138]
[1770614000605,5.52578556,2087.8,2087.1,0.98941138]
[1770614000914,5.52578556,2087.8,2087.0,2.18828928]
[1770614001806,5.52578556,2087.8,2087.1,1.19783271]
[1770614001991,5.52578556,2087.8,2087.0,2.18825852]
[1770614002186,5.52578556,2087.8,2087.5,0.001]
[1770614008021,0.98034213,2087.7,2087.5,0.001]
[1770614008390,0.98034213,2087.7,2087.3,0.001]
[1770614009293,1.19754742,2087.6,2087.3,0.001]
[1770614012327,2.17788955,2087.6,2087.3,0.001]
[1770614013902,0.98034213,2087.5,2087.3,0.001]
[1770614014220,3.348,2087.4,2087.3,0.001]
[1770614017127,4.54566216,2087.4,2087.3,0.001]
[1770614020322,3.348,2087.4,2087.3,0.001]
[1770614020631,4.54566216,2087.4,2087.3,0.001]
[1770614021732,4.54566216,2087.4,2087.1,0.001]
[1770614022306,4.54566216,2087.4,2087.1,0.99041138]
[1770614025616,3.348,2087.4,2087.1,0.99041138]
[1770614026018,4.54567134,2087.4,2087.1,0.99041138]
[1770614026532,4.54568116,2087.4,2087.1,0.99041138]
[1770614027847,4.54568116,2087.4,2087.3,0.001]
[1770614028240,4.54566216,2087.4,2087.3,0.001]
[1770614028543,3.348,2087.4,2087.3,0.001]
[1770614028928,4.54566216,2087.4,2087.3,0.001]
[1770614033245,4.54566216,2087.4,2087.1,0.001]
[1770614035841,5.46416508,2087.4,2087.1,0.001]
[1770614037617,5.46416508,2087.4,2087.0,0.001]
[1770614037836,0.91850292,2087.2,2086.5,0.95770837]
[1770614038031,3.348,2087.1,2086.5,0.95770837]
[1770614039024,3.348,2087.1,2086.6,0.95770837]
[1770614039229,4.54583903,2087.1,2086.6,0.95770837]
[1770614040138,3.348,2087.1,2086.6,0.95770837]
[1770614040446,4.54583431,2087.1,2087.0,0.001]
[1770614040754,4.54583431,2087.1,2086.7,0.95770837]
[1770614043243,3.348,2087.1,2086.8,0.95770837]
[1770614044521,3.348,2087.1,2086.6,2.15579509]
[1770614044728,3.348,2087.1,2086.7,0.95770837]
[1770614047331,0.7,2086.9,2086.7,0.95770837]
[1770614050026,0.7,2086.9,2086.5,2.15583761]
[1770614050654,0.7,2086.9,2086.6,0.95770837]
[1770614052558,0.002,2086.8,2086.6,2.15581571]
[1770614052731,0.002,2086.8,2086.6,2.15681571]
[1770614053861,0.002,2086.8,2086.7,0.95770837]
[1770614054532,0.002,2086.8,2086.7,2.15577229]
[1770614055154,0.002,2086.8,2086.7,0.95770837]
[1770614059275,0.002,2086.8,2086.6,1.19911906]
[1770614059474,0.90586266,2086.8,2086.6,0.001]
[1770614059774,0.90386266,2086.6,2085.7,0.90738428]
[1770614059965,0.90386266,2086.4,2085.7,2.10599717]
[1770614060268,0.90386266,2086.4,2086.0,0.003]
[1770614061673,1.19828504,2086.4,2086.0,0.003]
[1770614061856,0.90386266,2086.3,2086.0,0.001]
[1770614062253,0.90386266,2086.3,2085.6,2.10606605]
[1770614062574,0.90386266,2086.3,2085.7,0.002]
[1770614063768,2.10221372,2086.2,2085.7,0.002]
[1770614064376,0.90386266,2086.1,2085.7,0.002]
[1770614065282,0.90386266,2086.1,2085.5,2.24627486]
[1770614066154,0.90386266,2086.1,2085.9,0.001]
[1770614066356,2.1042738,2086.1,2085.5,2.24627486]
[1770614066679,1.19818288,2086.5,2085.9,0.90738428]
[1770614066878,0.002,2086.3,2085.7,0.90738428]
[1770614067271,0.90586266,2086.3,2085.7,0.90738428]
[1770614067455,0.90586266,2086.3,2085.6,0.001]
[1770614068269,2.10221372,2086.2,2085.6,0.001]
[1770614068959,0.90386266,2086.2,2085.6,0.001]
[1770614070159,0.90386266,2086.2,2085.6,0.90838428]
[1770614070359,0.90386266,2086.2,2085.7,1.19863834]
[1770614070560,1.20033733,2086.3,2085.7,1.19863834]
[1770614070778,2.10419999,2086.3,2085.7,1.19863834]
[1770614071170,2.10419999,2086.3,2085.7,2.10602262]
[1770614072287,2.10419999,2086.3,2085.7,2.10602214]
[1770614072460,0.90386266,2086.2,2085.7,1.19863786]
[1770614072660,0.90386266,2086.2,2085.6,2.10705171]
[1770614072885,0.90386266,2086.2,2085.6,1.19966743]
[1770614073082,0.90386266,2086.2,2085.7,1.19863206]
[1770614073384,0.90386266,2086.2,2085.6,1.19965817]
[1770614073763,0.90386266,2086.2,2085.7,1.19863304]
[1770614074472,2.10221456,2086.2,2085.6,1.19965948]
[1770614077292,0.90386266,2086.1,2085.5,2.2462734]
[1770614078494,0.90386266,2086.1,2085.9,0.001]
[1770614078693,0.90386266,2086.1,2085.5,2.2462734]
[1770614078878,0.90586266,2086.1,2085.5,2.2462734]
[1770614079077,2.10429193,2086.1,2085.6,0.001]
[1770614083375,0.90386266,2086.0,2085.6,0.001]
[1770614083576,2.10235307,2086.0,2085.6,0.001]
[1770614084499,0.90386266,2085.9,2085.6,0.001]
[1770614084999,0.90386266,2085.9,2085.5,0.0811766]
[1770614085504,4.54849041,2086.0,2085.5,0.0811766]
[1770614086001,5.51394901,2086.0,2085.5,0.0811766]
[1770614088602,0.9654586,2085.9,2085.5,0.0811766]
[1770614088804,4.54849041,2086.0,2085.5,0.0811766]
[1770614089100,3.35,2086.0,2085.5,2.23025219]
[1770614089480,4.55044643,2086.1,2085.5,2.23025219]
[1770614090701,4.55044643,2086.1,2085.7,0.001]
[1770614090974,0.002,2085.9,2085.7,0.001]
[1770614093476,0.002,2085.9,2085.7,0.95135221]
[1770614093682,0.00199999,2086.2,2085.9,0.95035221]
[1770614094181,0.00199999,2086.2,2085.7,0.001]
[1770614094182,4.3164586,2086.1,2085.7,0.001]
[1770614094381,0.9654586,2086.0,2085.7,0.001]
[1770614095105,2.16394713,2086.0,2085.7,0.001]
[1770614096184,0.00199999,2085.9,2085.7,0.001]
[1770614101986,0.00199999,2085.9,2085.5,0.0821766]
[1770614103489,0.00199999,2085.9,2085.5,2.23127142]
[1770614103788,0.00199999,2085.9,2085.7,0.001]
[1770614104691,0.00399999,2085.9,2085.7,0.001]
[1770614105013,0.00399999,2085.9,2085.7,0.95135221]
[1770614105312,3.353,2086.3,2085.8,0.95035221]
[1770614106007,3.353,2086.3,2085.9,0.95035221]
[1770614106315,4.55130701,2086.3,2085.8,0.95035221]
[1770614106700,3.353,2086.3,2085.8,0.95035221]
[1770614107001,0.9654586,2086.2,2085.5,0.0821766]
[1770614108014,1.19840851,2086.1,2085.5,0.0821766]
[1770614108202,0.9654586,2086.0,2085.5,0.0821766]
[1770614110120,1.19852341,2085.9,2085.5,0.0821766]
[1770614110310,3.351,2085.8,2085.5,0.0821766]
[1770614111217,3.351,2085.8,2085.6,0.95035221]
[1770614111594,0.9654586,2086.2,2085.6,9.2381319]
[1770614111813,2.16381671,2086.2,2085.6,9.2381319]
[1770614112225,2.16381671,2086.2,2085.6,2.14904008]
[1770614112440,0.7,2086.7,2086.2,0.95035221]
[1770614112715,0.002,2087.2,2086.7,0.95035221]
[1770614113216,0.002,2087.2,2086.7,1.00045958]
[1770614113398,0.002,2087.2,2086.7,0.95035221]
[1770614114223,0.002,2087.2,2086.9,0.95035221]
[1770614114542,0.002,2087.2,2086.8,2.14835872]
[1770614117610,0.002,2087.0,2086.8,2.14835872]
[1770614117810,0.7,2087.0,2086.8,2.14835872]
[1770614118118,0.002,2087.2,2086.8,2.19846609]
[1770614118630,0.002,2087.2,2086.9,0.96089391]
[1770614118831,0.002,2087.2,2086.8,1.19800651]
[1770614119499,0.002,2087.2,2086.8,1.19799814]
[1770614119722,0.002,2087.2,2086.6,4.79236328]
[1770614120026,0.002,2087.2,2086.6,5.75325719]
[1770614123831,0.90632034,2087.2,2086.6,4.79236328]
[1770614125927,0.90632034,2087.2,2086.6,1.19812134]
[1770614128831,0.90632034,2087.2,2086.6,2.15901525]
[1770614129156,0.002,2087.2,2086.7,0.96089391]
[1770614129726,0.002,2087.2,2086.7,1.01100128]
[1770614129958,0.002,2087.2,2086.8,2.15990042]
[1770614130259,0.002,2087.0,2086.8,2.15990042]
[1770614130477,0.002,2087.2,2086.8,2.15990042]
[1770614132168,0.90632034,2087.2,2086.8,0.001]
[1770614141793,0.90632034,2087.2,2087.0,0.001]
[1770614144161,0.90432034,2087.1,2086.8,0.001]
[1770614144681,1.19978992,2087.2,2086.8,0.001]
[1770614144682,0.90632034,2087.2,2086.8,0.001]
[1770614145262,0.002,2087.2,2086.8,0.001]
[1770614146790,0.97188424,2087.2,2086.8,0.001]
[1770614149370,2.16967271,2087.2,2086.8,0.001]
[1770614149994,0.96988424,2086.8,2086.5,0.001]
[1770614150579,0.96988424,2087.1,2086.5,0.001]
[1770614151393,2.16777595,2087.0,2086.5,0.001]
[1770614153098,0.96988424,2086.9,2086.5,0.001]
[1770614153306,8.28174868,2086.3,2085.9,0.001]
[1770614153507,4.31888424,2086.7,2085.9,0.99605361]
[1770614153677,5.51695013,2086.7,2085.9,0.99605361]
[1770614153877,2.16795013,2086.7,2085.9,0.99605361]
[1770614154792,0.96988424,2086.6,2085.9,0.99605361]
[1770614155795,2.16793114,2086.8,2086.1,0.99505361]
[1770614155979,1.19797621,2086.9,2086.2,0.99505361]
[1770614156301,2.16981897,2087.0,2086.2,0.99505361]
[1770614156484,0.96988424,2086.9,2086.2,0.99505361]
[1770614158312,2.16787814,2086.9,2086.2,2.19336272]
[1770614158620,1.1979939,2086.9,2086.3,0.99505361]
[1770614159385,0.96988424,2086.8,2086.1,2.19343094]
[1770614160202,0.96988424,2086.8,2086.2,1.19834446]
[1770614160527,2.16790865,2086.8,2086.2,1.19834446]
[1770614161591,0.96988424,2086.9,2086.2,1.19834446]
[1770614162213,0.96988424,2086.9,2086.1,10.47517502]
[1770614162586,2.16785938,2086.9,2086.2,0.99505361]
[1770614163294,0.96988424,2086.8,2086.2,0.99505361]
[1770614165030,0.96988424,2086.7,2086.0,2.19348616]
[1770614165191,0.96988424,2086.7,2086.1,1.19840578]
[1770614165524,0.96988424,2086.7,2086.0,2.19351242]
[1770614165711,0.96988424,2086.7,2086.0,2.19350815]
[1770614166090,0.96988424,2086.7,2086.0,2.19351774]
[1770614166320,2.16982156,2087.0,2086.3,0.99505361]
[1770614166498,2.16979263,2087.0,2086.3,0.99505361]
[1770614166705,0.96988424,2086.9,2086.4,0.001]
[1770614167292,2.1678897,2086.9,2086.4,0.001]
[1770614168599,1.1999364,2087.0,2086.4,0.99605361]
[1770614168916,1.1998931,2087.0,2086.4,0.99605361]
[1770614169330,1.1998931,2087.0,2086.4,0.001]
[1770614169331,2.16977734,2087.0,2086.4,0.001]
[1770614169490,2.16977734,2087.0,2086.4,2.19428348]
[1770614169694,2.16977734,2087.0,2086.4,2.19428801]
[1770614170519,2.16977734,2087.0,2086.4,2.19427903]
[1770614170902,2.16977734,2087.0,2086.4,2.19428759]
[1770614171929,0.97188424,2087.0,2086.4,2.19428759]
[1770614172132,2.16979313,2087.0,2086.4,1.19923398]
[1770614173802,2.16979313,2087.0,2086.4,0.99605361]
[1770614173803,0.002,2087.0,2086.4,0.99605361]
[1770614174003,0.002,2087.2,2086.8,0.99505361]
[1770614175634,0.002,2087.2,2086.8,1.04516098]
[1770614175816,0.002,2087.6,2087.2,0.95073333]
[1770614177332,0.002,2087.6,2087.3,0.97205257]
[1770614177908,0.002,2087.6,2087.3,2.16972072]
[1770614179240,0.002,2087.6,2087.4,0.97205257]
[1770614179734,0.002,2088.1,2087.5,0.97205257]
[1770614180110,0.002,2088.1,2087.6,2.16959999]
[1770614181142,0.002,2088.1,2087.7,0.97205257]
[1770614181641,0.002,2088.3,2088.0,9.25380125]
[1770614181839,0.002,2088.3,2088.0,0.97205257]
[1770614182344,0.002,2088.3,2088.0,2.16936898]
[1770614185630,0.002,2088.3,2088.0,2.16936891]
[1770614185947,0.002,2088.3,2088.0,1.19731634]
[1770614187233,0.002,2088.3,2087.7,1.19746384]
[1770614187234,0.90556923,2088.3,2087.7,1.19746384]
[1770614187434,0.90556923,2088.3,2087.5,1.19760479]
[1770614187634,0.90556923,2088.3,2087.5,2.16965736]
[1770614189541,0.90356923,2088.2,2087.5,1.19760479]
[1770614189828,0.90356923,2088.2,2087.5,2.16965736]
[1770614190028,0.90356923,2088.2,2087.5,1.19760479]
[1770614190635,0.90356923,2088.2,2087.5,2.16965736]
[1770614190836,0.90356923,2088.2,2087.5,10.45140604]
[1770614191446,0.002,2088.3,2087.6,0.97205257]
[1770614192358,0.002,2088.3,2087.6,0.97305257]
[1770614192540,0.002,2088.0,2087.6,0.001]
[1770614195360,0.002,2088.0,2087.6,0.97305257]
[1770614196157,0.002,2088.0,2087.7,1.19749006]
[1770614200144,0.002,2088.2,2087.8,0.97205257]
[1770614202265,0.002,2088.2,2088.0,0.97205257]
[1770614203257,0.002,2088.2,2088.0,1.02215994]
[1770614203455,0.002,2088.7,2088.0,0.05010737]
[1770614203654,0.002,2088.9,2088.5,0.97205257]
[1770614204246,0.002,2088.9,2088.6,1.19697404]
[1770614204446,0.002,2088.9,2088.5,2.16904346]
[1770614204765,0.002,2088.9,2088.5,1.19699089]
[1770614205746,0.002,2088.9,2088.5,1.19703109]
[1770614206577,0.9800978,2088.9,2088.3,1.19710904]
[1770614206778,0.9800978,2088.9,2088.2,1.1971573]
[1770614207752,0.9800978,2088.9,2088.1,4.78894706]
[1770614208073,0.9800978,2088.9,2088.3,1.19713547]
[1770614208272,0.9800978,2088.9,2088.1,4.78900937]
[1770614208455,0.9780978,2088.8,2088.1,4.78900937]
[1770614210482,0.9780978,2088.8,2088.1,1.19726066]
[1770614210687,0.9780978,2088.7,2088.1,1.19726066]
[1770614212286,0.9780978,2088.7,2088.0,1.19727689]
[1770614212677,1.19692914,2088.7,2088.0,1.19727689]
[1770614212877,0.9780978,2088.6,2088.0,1.19727689]
[1770614213559,0.9780978,2088.6,2088.0,2.20085219]
[1770614213884,0.9780978,2088.8,2088.1,0.95346793]
[1770614214094,0.002,2088.9,2088.2,0.95346793]
[1770614214258,0.9800978,2088.9,2088.2,0.95346793]
[1770614214459,2.17690568,2088.9,2088.2,0.95346793]
[1770614214859,0.9800978,2088.9,2088.3,1.197146]
[1770614215383,0.002,2088.9,2088.3,2.2007213]
[1770614215963,0.9800978,2088.9,2088.3,1.197146]
[1770614216560,2.17690437,2088.9,2088.3,1.197146]
[1770614217565,0.9800978,2088.9,2088.3,1.197146]
[1770614218088,0.9800978,2088.9,2088.3,1.198146]
[1770614218290,0.002,2088.7,2088.3,1.198146]
[1770614218588,0.002,2088.7,2088.3,2.15161393]
[1770614219171,0.002,2088.7,2088.3,2.2017213]
[1770614219359,0.002,2088.7,2088.4,0.95346793]
[1770614220583,0.002,2088.7,2088.3,1.24825337]
[1770614220988,0.002,2088.7,2088.3,2.2017213]
[1770614222070,0.002,2088.7,2088.4,0.95346793]
[1770614224000,0.002,2088.7,2088.5,2.15049929]
[1770614225675,0.002,2088.7,2088.4,1.19704635]
[1770614225876,0.002,2088.7,2088.3,0.001]
[1770614227396,0.002,2088.7,2088.3,0.05110737]
[1770614227995,0.002,2088.7,2088.4,1.19708868]
[1770614229305,0.002,2088.7,2088.4,2.15055661]
[1770614230298,0.002,2088.7,2088.4,1.19708868]
[1770614230504,0.002,2088.7,2088.6,0.001]
[1770614238084,0.002,2088.9,2088.6,0.001]
[1770614238410,0.002,2089.3,2088.8,1.02849515]
[1770614239121,0.002,2089.3,2088.9,8.26382367]
[1770614239614,0.002,2089.3,2089.0,1.19674485]
[1770614241289,0.002,2089.6,2089.2,9.29231882]
[1770614241706,0.002,2089.6,2089.3,1.19657301]
[1770614242091,0.002,2089.6,2089.2,14.07861087]
[1770614242092,0.002,2089.6,2089.2,1.19658593]
[1770614242834,0.002,2089.6,2089.2,10.48890475]
[1770614244111,0.002,2089.3,2089.2,10.48890475]
[1770614244322,0.002,2089.6,2089.2,10.48890475]
[1770614244701,0.002,2089.6,2089.2,2.17497371]
[1770614245021,0.002,2089.6,2089.1,1.19664784]
[1770614245207,0.90582675,2089.6,2089.1,1.19668378]
[1770614245597,0.90582675,2089.6,2088.7,0.001]
[1770614245804,0.90382675,2089.3,2088.7,0.001]
[1770614248793,0.90382675,2089.5,2088.8,0.05010737]
[1770614248990,0.90382675,2089.5,2088.8,9.29231882]
[1770614249227,0.90382675,2089.4,2088.7,0.001]
[1770614249428,0.90382675,2089.4,2088.8,0.05010737]
[1770614249828,0.90382675,2089.4,2088.8,1.02849515]
[1770614251123,0.90382675,2089.4,2088.9,1.19680214]
[1770614251837,2.10035128,2089.4,2088.8,2.22531322]
[1770614252043,0.90382675,2089.4,2088.8,1.24692544]
[1770614253302,0.90382675,2089.4,2088.7,1.19787974]
[1770614253303,0.90382675,2089.3,2088.7,1.19787974]
[1770614255345,0.90382675,2089.2,2088.7,0.001]
[1770614256129,0.90382675,2089.2,2088.9,0.001]
[1770614260570,0.90382675,2089.1,2088.5,0.001]
[1770614262140,0.90382675,2088.9,2088.5,0.001]
[1770614263234,0.90382675,2088.9,2088.3,0.001]
[1770614264034,1.19685944,2088.8,2088.3,0.001]
[1770614264240,0.90382675,2088.7,2088.3,0.001]
[1770614266374,2.10788985,2088.6,2088.3,0.001]
[1770614268166,1.19697404,2088.6,2088.3,0.001]
[1770614268458,4.78779268,2088.7,2088.5,0.001]
[1770614268766,5.69870849,2088.7,2088.5,0.001]
[1770614270266,5.69870849,2088.7,2088.3,0.001]
[1770614270874,0.91091581,2088.6,2088.3,0.001]
[1770614272968,4.78779268,2088.7,2088.3,0.001]
[1770614273269,0.91091581,2088.7,2088.3,0.001]
[1770614276246,1.19697404,2088.6,2088.3,0.001]
[1770614280970,0.002,2088.5,2088.3,0.001]
[1770614285268,0.002,2088.5,2088.0,3.38170709]
[1770614287268,1.19903136,2088.5,2088.0,3.38170709]
[1770614289086,1.19903136,2088.5,2088.0,2.5563181]
[1770614289384,0.002,2088.5,2088.1,0.82538899]
[1770614289566,0.002,2088.5,2088.0,2.5563181]
[1770614289892,0.002,2088.5,2088.0,3.38170709]
[1770614291472,1.19903136,2088.5,2088.0,3.38170709]
[1770614292261,0.002,2088.7,2088.4,0.82538899]
[1770614292566,2.10963249,2089.1,2088.5,9.09215276]
[1770614292765,2.1096051,2089.1,2088.5,9.09215276]
[1770614293087,0.7,2088.9,2088.5,9.09215276]
[1770614293273,0.7,2088.9,2088.6,0.82538899]
[1770614294072,0.7,2088.9,2088.7,0.82538899]
[1770614294486,0.7,2088.9,2088.6,1.24706634]
[1770614294686,0.7,2088.9,2088.6,2.07245533]
[1770614294987,0.7,2088.9,2088.7,0.82538899]
[1770614295384,0.7,2088.9,2088.5,10.28915489]
[1770614295585,0.7,2088.9,2088.5,2.02239112]
[1770614296572,0.7,2088.9,2088.6,0.87549636]
[1770614297363,0.6352803,2088.9,2088.6,0.87549636]
[1770614297569,0.002,2089.1,2088.7,9.09215276]
[1770614297767,0.002,2089.1,2088.8,1.19685944]
[1770614299463,0.002,2089.1,2088.7,10.28903856]
[1770614299662,0.002,2089.1,2088.7,2.02227479]
[1770614301099,0.002,2089.1,2088.7,1.1968858]
[1770614302884,0.002,2089.1,2088.7,2.02227479]
[1770614304693,0.002,2089.1,2088.8,0.82538899]
[1770614305080,0.002,2089.1,2088.9,0.87649636]
[1770614306002,0.002,2089.1,2088.9,0.82638899]
[1770614306878,0.002,2089.1,2089.0,0.05010737]
[1770614307197,0.002,2089.1,2088.9,2.07325028]
[1770614307680,0.002,2089.3,2089.0,0.05010737]
[1770614307880,0.002,2089.3,2089.0,0.82538899]
[1770614308879,0.002,2089.3,2088.9,1.24786129]
[1770614309196,0.002,2089.3,2088.9,2.07325028]
[1770614309391,0.98394349,2089.3,2088.9,1.19780131]
[1770614309769,0.98394349,2089.3,2088.9,0.001]
[1770614310505,0.98194349,2089.2,2088.6,0.001]
[1770614311106,0.98194349,2089.0,2088.6,0.001]
[1770614313183,2.17869255,2089.0,2088.6,0.001]
[1770614314405,0.98194349,2089.0,2088.6,0.001]
[1770614314805,0.98194349,2089.0,2088.6,0.002]
[1770614316600,0.98194349,2089.0,2088.6,0.001]
[1770614317300,0.98194349,2089.0,2088.6,0.002]
[1770614317301,0.98194349,2088.9,2088.6,0.002]
[1770614317504,0.98194349,2088.9,2088.6,0.001]
[1770614318107,0.98194349,2088.8,2088.6,0.001]
[1770614318505,0.002,2088.9,2088.6,0.002]
[1770614318884,0.98394349,2088.9,2088.6,0.002]
[1770614319493,0.98194349,2088.8,2088.6,0.002]
[1770614320096,0.002,2088.9,2088.6,0.002]
[1770614320680,0.98394349,2088.9,2088.6,0.002]
[1770614320897,0.002,2088.9,2088.6,0.002]
[1770614323308,0.002,2088.9,2088.7,0.05010737]
[1770614323483,0.98394349,2088.9,2088.6,0.002]
[1770614323809,0.98194349,2088.8,2088.6,0.001]
[1770614324019,0.98194349,2088.8,2088.5,0.001]
[1770614324513,0.98194349,2088.8,2088.2,3.346]
[1770614324708,0.98194349,2088.8,2088.3,0.001]
[1770614325496,0.9598731,2088.6,2088.3,0.001]
[1770614327515,0.9598731,2088.6,2088.2,0.001]
[1770614327714,0.9598731,2088.5,2088.3,0.001]
[1770614329297,0.9598731,2088.3,2088.0,2.32470469]
[1770614329691,2.15707643,2088.2,2088.0,2.32470469]
[1770614330723,0.9598731,2088.1,2088.0,2.32470469]
[1770614331501,0.9598731,2088.1,2087.7,0.0112882]
[1770614331712,0.9598731,2088.1,2087.7,0.0122882]
[1770614331920,2.15713376,2088.1,2088.0,0.001]
[1770614332131,2.15713376,2088.1,2087.4,1.2487686]
[1770614332132,0.9598731,2088.0,2087.2,3.347]
[1770614332425,0.9598731,2087.7,2087.2,0.001]
[1770614333193,0.9598731,2087.5,2087.2,0.001]
[1770614334019,0.9598731,2087.3,2087.1,0.001]
[1770614336109,0.9598731,2087.2,2087.1,0.001]
[1770614340306,2.1574224,2087.6,2087.1,0.001]
[1770614340505,0.9598731,2087.5,2087.1,0.001]
[1770614341932,2.15736636,2087.7,2087.1,0.001]
[1770614342142,0.9598731,2087.6,2087.1,0.001]
[1770614342314,0.9598731,2087.5,2087.1,0.001]
[1770614343513,0.9598731,2087.3,2087.1,0.001]
[1770614344627,1.19772584,2087.3,2087.1,0.001]
[1770614344821,0.9598731,2087.2,2087.1,0.001]
[1770614345633,10.43626286,2087.6,2087.1,0.001]
[1770614345844,2.15746509,2087.6,2087.1,0.001]
[1770614346543,2.15743726,2087.6,2087.1,0.001]
[1770614347244,0.9598731,2087.6,2087.1,0.001]
[1770614347459,0.9598731,2087.5,2087.1,0.001]
[1770614348616,0.9598731,2087.3,2087.1,0.001]
[1770614350530,2.15762611,2087.3,2087.1,0.001]
[1770614350726,0.9598731,2087.3,2087.1,0.001]
[1770614350942,1.19768976,2087.4,2087.1,0.001]
[1770614351429,2.15756286,2087.4,2087.1,0.001]
[1770614351937,4.78997579,2087.7,2087.1,0.001]
[1770614351938,2.15736316,2087.7,2087.1,0.001]
[1770614352157,0.9598731,2087.6,2087.1,0.001]
[1770614352525,1.19760479,2087.5,2087.1,0.001]
[1770614352725,0.9598731,2087.5,2087.1,0.001]
[1770614354047,2.15746244,2087.6,2087.1,0.001]
[1770614355647,1.19758934,2087.6,2087.1,0.001]
[1770614356632,5.72761325,2087.7,2087.1,0.001]
[1770614357431,0.92577352,2087.6,2087.3,0.001]
[1770614357760,0.002,2087.4,2087.3,0.001]
[1770614359150,0.002,2087.4,2087.1,0.001]
[1770614360449,0.002,2087.4,2087.1,0.82738899]
[1770614362282,0.002,2087.4,2087.1,1.1988319]
[1770614362454,0.002,2087.4,2087.1,2.02522089]
[1770614362653,0.002,2087.4,2087.1,2.07532826]
[1770614363143,0.002,2087.4,2087.2,0.82638899]
[1770614363337,0.002,2087.4,2087.2,2.02414612]
[1770614364261,0.002,2087.4,2087.1,0.001]
[1770614368572,0.92777352,2087.4,2087.1,0.001]
[1770614370063,0.92577352,2087.2,2086.7,0.001]
[1770614370361,0.92577352,2087.1,2086.7,0.001]
[1770614371078,0.92777352,2087.2,2086.7,0.05110737]
[1770614371652,0.002,2087.2,2086.7,0.05110737]
[1770614372269,0.002,2087.2,2086.7,1.1990154]
[1770614372469,0.92777352,2087.2,2086.7,1.1990154]
[1770614375171,0.002,2087.2,2086.7,2.07551176]
[1770614375487,0.002,2087.4,2087.0,0.87649636]
[1770614375667,0.002,2087.4,2087.1,1.19783431]
[1770614376172,0.002,2087.4,2086.7,0.001]
[1770614376173,0.92577352,2087.1,2086.7,0.001]
[1770614378284,1.19779718,2087.2,2086.7,0.001]
[1770614378773,2.1235707,2087.2,2086.7,0.001]
[1770614379297,8.27879777,2086.8,2086.5,0.001]
[1770614379472,0.92577352,2086.7,2086.5,0.001]
[1770614380400,0.92577352,2086.7,2086.4,0.001]
[1770614381097,2.12384094,2086.7,2086.4,0.001]
[1770614381400,0.92577352,2086.7,2086.4,0.001]
[1770614382506,0.92577352,2086.7,2086.6,0.001]
[1770614384076,0.002,2087.0,2086.6,0.001]
[1770614384409,0.92777352,2087.0,2086.6,0.001]
[1770614384793,0.92777352,2087.0,2086.4,1.24932444]
[1770614384794,0.92577352,2086.7,2086.4,0.001]
[1770614386510,2.12388892,2086.7,2086.4,0.001]
[1770614386715,0.95445957,2086.6,2086.4,0.001]
[1770614387382,0.95445957,2086.6,2086.2,0.001]
[1770614387586,0.95445957,2086.5,2086.2,0.001]
[1770614388492,2.15268043,2086.5,2086.2,0.001]
[1770614389519,0.95445957,2086.5,2086.2,0.001]
[1770614390515,2.15264064,2086.5,2086.2,0.001]
[1770614390713,0.95445957,2086.4,2086.2,0.001]
[1770614391015,0.95445957,2086.2,2085.8,0.001]
[1770614393413,0.7,2086.3,2085.8,0.001]
[1770614393613,0.95445957,2086.2,2085.8,0.001]
[1770614393800,0.95445957,2086.1,2085.8,0.001]